fUST/lending_fUST_20250729
["ID","MTS","AMOUNT","RATE_DAILY","PERIOD"]
[375874982,1753769444346,-283.11186941,0.00025222,2]
[375874983,1753769444356,-154.311643,0.00025279,2]
[375874984,1753769444365,-200.0,0.00025348,15]
[375874985,1753769444375,-200.0,0.00025348,15]
[375874986,1753769444384,-200.0,0.00025348,15]
[375874987,1753769444394,-200.0,0.00025348,15]
[375874988,1753769444404,-200.0,0.00025348,15]
[375874989,1753769444413,-200.0,0.00025348,15]
[375874990,1753769444423,-200.0,0.00025348,15]
[375874991,1753769444432,-200.0,0.00025348,15]
[375874992,1753769444443,-200.0,0.00025348,15]
[375874993,1753769444452,-394.0,0.00025348,15]
[375874994,1753769444462,-2200.0,0.00025373,2]
[375874995,1753769444471,-150.0,0.00025398,2]
[375874996,1753769444481,-150.0,0.00025398,2]
[375874997,1753769444490,-150.0,0.00025398,2]
[375874998,1753769444500,-502.03127358,0.0002543,5]
[375874999,1753769444510,-831.29485691,0.00025479,2]
[375875000,1753769444520,-160.0,0.00025479,2]
[375875001,1753769444529,-530.51,0.00025479,2]
[375875002,1753769444540,-500.0,0.0002548,2]
[375875003,1753769444550,-618.2,0.00025525,7]
[375875004,1753769444560,-181.1283517,0.00025589,2]
[375875005,1753769444570,-205.7268859,0.00025589,2]
[375875006,1753769444580,-165.0839511,0.00025589,2]
[375875007,1753769444590,-160.1053548,0.00025589,2]
[375875008,1753769444600,-178.4386705,0.00025589,2]
[375875009,1753769444610,-160.1053548,0.00025589,2]
[375875010,1753769444620,-178.4386705,0.00025589,2]
[375875011,1753769444629,-178.4386705,0.00025589,2]
[375875012,1753769444639,-354.324302,0.00025595,2]
[375875013,1753769444648,-127469.81555146,0.0002561,11]
[375875014,1753769444661,-172549.70120414,0.0002561,11]
[375875015,1753769444672,-42829.3864147,0.0002561,11]
[375875016,1753769444684,-943.66787848,0.0002561,11]
[375875017,1753769444695,-435.51075284,0.0002561,11]
[375875018,1753769444707,-1029.90528088,0.0002561,11]
[375875019,1753769444958,-577.55833004,0.00019178,2]
[375875020,1753769444969,-460.0,0.00020821,2]
[375875021,1753769444979,-460.0,0.00021095,2]
[375875022,1753769444988,-460.0,0.00021369,2]
[375875023,1753769444998,-5176.95671903,0.0002561,11]
[375875024,1753769445029,-380.63000001,0.00020548,10]
[375875025,1753769445041,-6367.84999999,0.00020548,10]
[375875026,1753769445051,-430.42637481,0.00021643,2]
[375875033,1753769558434,150.0,0.00019499,30]
[375875034,1753769607496,402.36790654,0.00018501,2]
[375875036,1753769623342,880.03106229,0.00018501,2]
[375875037,1753769628077,150.0,0.00019122,30]
[375875042,1753769661910,200.0,0.0001904,15]
[375875043,1753769663399,200.0,0.0001904,15]
[375875044,1753769664282,200.0,0.0001904,15]
[375875045,1753769665092,200.0,0.0001904,15]
[375875050,1753769890387,180.1576769,0.00017808,2]
[375875051,1753769925667,158.157196,0.00013699,2]
[375875053,1753769937615,5351.6659786,0.00017666,2]
[375875054,1753769962045,200.0,0.00019037,15]
[375875055,1753769962830,200.0,0.00019037,15]
[375875056,1753769963690,200.0,0.00019037,15]
[375875057,1753769964505,200.0,0.00019037,15]
[375875058,1753770041369,158.83007501,0.00018501,2]
[375875061,1753770262153,200.0,0.00019036,15]
[375875062,1753770262977,200.0,0.00019036,15]
[375875063,1753770263817,200.0,0.00019036,15]
[375875064,1753770264607,200.0,0.00019036,15]
[375875065,1753770305645,-197.87053435,0.00018566,2]
[375875066,1753770305680,-194.65696517,0.00018567,2]
[375875067,1753770305714,-370.62360999,0.00018573,2]
[375875068,1753770305746,-2504.82390137,0.00018573,2]
[375875069,1753770305779,-223.85374636,0.000186,2]
[375875070,1753770362301,202.59879135,0.00018465,2]
[375875073,1753770397639,-281.77,0.00018658,3]
[375875074,1753770397669,-300.0,0.00018662,2]
[375875075,1753770397700,-300.0,0.00018662,2]
[375875076,1753770397730,-300.0,0.00018662,2]
[375875077,1753770397761,-1200.0,0.00018662,2]
[375875078,1753770397791,-1200.0,0.00018662,2]
[375875079,1753770397821,-366.82060993,0.00018662,2]
[375875080,1753770397851,-407.11964367,0.00018662,2]
[375875081,1753770397883,-500.0,0.00018662,2]
[375875082,1753770398153,-500.0,0.00018662,2]
[375875083,1753770398186,-500.0,0.00018662,2]
[375875084,1753770398220,-500.0,0.00018662,2]
[375875085,1753770398250,-193.2431822,0.00018662,2]
[375875086,1753770398280,-517.19840758,0.00018662,2]
[375875087,1753770398312,-500.0,0.00018662,2]
[375875088,1753770398344,-500.0,0.00018662,2]
[375875089,1753770398375,-279.66035363,0.00018662,2]
[375875090,1753770398487,-500.0,0.00018662,2]
[375875091,1753770398520,-500.0,0.00018662,2]
[375875092,1753770398557,-500.0,0.00018662,2]
[375875093,1753770398589,-500.0,0.00018662,2]
[375875094,1753770398865,-500.0,0.00018662,2]
[375875095,1753770398909,-500.0,0.00018662,2]
[375875096,1753770398952,-500.0,0.00018662,2]
[375875097,1753770398995,-500.0,0.00018662,2]
[375875098,1753770399039,-500.0,0.00018662,2]
[375875099,1753770399081,-500.0,0.00018662,2]
[375875100,1753770399626,-500.0,0.00018662,2]
[375875101,1753770399665,-500.0,0.00018662,2]
[375875102,1753770399707,-500.0,0.00018662,2]
[375875103,1753770400124,-2992.73317542,0.00018663,2]
[375875104,1753770400155,-10000.0,0.00018663,2]
[375875105,1753770400207,-10000.0,0.00018663,2]
[375875106,1753770400478,-10000.0,0.00018663,2]
[375875107,1753770400852,-10000.0,0.00018663,2]
[375875108,1753770401126,-2992.73317542,0.00018663,2]
[375875109,1753770401152,-4014.53364916,0.00018663,2]
[375875110,1753770401345,-10000.0,0.00018668,2]
[375875111,1753770401668,-10000.0,0.00018668,2]
[375875112,1753770401932,-10000.0,0.00018668,2]
[375875113,1753770402171,-10000.0,0.00018668,2]
[375875114,1753770402434,-10000.0,0.00018668,2]
[375875115,1753770402778,-10000.0,0.00018668,2]
[375875116,1753770403040,-10000.0,0.00018668,2]
[375875117,1753770403277,-10000.0,0.00018668,2]
[375875118,1753770403515,-10000.0,0.00018668,2]
[375875119,1753770403791,-10000.0,0.00018668,2]
[375875120,1753770404047,-10000.0,0.00018668,2]
[375875121,1753770404506,-10000.0,0.00018668,2]
[375875122,1753770404629,-10000.0,0.00018668,2]
[375875123,1753770405010,-10000.0,0.00018668,2]
[375875124,1753770405264,-10000.0,0.00018668,2]
[375875125,1753770405510,-10000.0,0.00018668,2]
[375875126,1753770405780,-10000.0,0.00018668,2]
[375875127,1753770406002,-10000.0,0.00018668,2]
[375875128,1753770406269,-10000.0,0.00018668,2]
[375875129,1753770406573,-10000.0,0.00018668,2]
[375875130,1753770406837,-10000.0,0.00018668,2]
[375875131,1753770407040,-10000.0,0.00018668,2]
[375875132,1753770407285,-10000.0,0.00018668,2]
[375875133,1753770407518,-10000.0,0.00018668,2]
[375875134,1753770407792,-10000.0,0.00018668,2]
[375875135,1753770408140,-10000.0,0.00018668,2]
[375875136,1753770408419,-10000.0,0.00018668,2]
[375875137,1753770408722,-10000.0,0.00018668,2]
[375875138,1753770408945,-10000.0,0.00018668,2]
[375875139,1753770409186,-10000.0,0.00018668,2]
[375875140,1753770409441,-10000.0,0.00018668,2]
[375875141,1753770409725,-10000.0,0.00018668,2]
[375875142,1753770410103,-10000.0,0.00018668,2]
[375875143,1753770410399,-10000.0,0.00018668,2]
[375875144,1753770410613,-10000.0,0.00018668,2]
[375875145,1753770410879,-10000.0,0.00018668,2]
[375875146,1753770411138,-10000.0,0.00018668,2]
[375875147,1753770411388,-502.28091123,0.00018673,2]
[375875148,1753770411417,-501.01943038,0.00018673,2]
[375875149,1753770411446,-500.0,0.00018673,2]
[375875150,1753770411477,-213.86159497,0.00018673,2]
[375875151,1753770411506,-500.0,0.00018673,2]
[375875152,1753770411537,-500.0,0.00018673,2]
[375875153,1753770411565,-500.0,0.00018673,2]
[375875154,1753770411594,-500.0,0.00018673,2]
[375875155,1753770411624,-370.9975937,0.00018673,2]
[375875156,1753770411652,-500.33812626,0.00018673,2]
[375875157,1753770411681,-323.00468692,0.00018673,2]
[375875158,1753770411842,-176.99531308,0.00018673,2]
[375875159,1753770413117,197.87053434,0.00018573,2]
[375875163,1753770432167,-1945.25035215,0.000189,2]
[375875164,1753770433397,5000.0,0.000187,2]
[375875165,1753770442082,1039.27420548,0.000187,2]
[375875166,1753770444106,-73.3585706,0.000189,2]
[375875167,1753770444128,-159.0,0.00018904,3]
[375875168,1753770444151,-378.40901459,0.00019,5]
[375875169,1753770448271,-1717.30639876,0.00019,5]
[375875170,1753770448296,-3000.0,0.00019,2]
[375875171,1753770448319,-192.57171171,0.00019078,2]
[375875172,1753770448340,-500.0,0.00019173,2]
[375875173,1753770448361,-361.47258721,0.00019173,2]
[375875174,1753770448384,-300.0,0.00019177,2]
[375875175,1753770448405,-460.0,0.00019178,2]
[375875176,1753770448426,-460.0,0.00019178,2]
[375875177,1753770448447,-460.0,0.00019178,2]
[375875178,1753770448468,-460.0,0.00019178,2]
[375875179,1753770448490,-460.0,0.00019178,2]
[375875180,1753770448511,-460.0,0.00019178,2]
[375875181,1753770448533,-460.0,0.00019178,2]
[375875182,1753770448558,-460.0,0.00019178,2]
[375875183,1753770448581,-460.0,0.00019178,2]
[375875184,1753770448603,-572.8,0.00019178,2]
[375875185,1753770448624,-460.0,0.00019178,2]
[375875186,1753770448646,-460.0,0.00019178,2]
[375875187,1753770448668,-553.64,0.00019178,2]
[375875188,1753770448689,-460.0,0.00019178,2]
[375875189,1753770448711,-186.68831977,0.00019178,2]
[375875190,1753770470794,3408.86463402,0.00018,2]
[375875191,1753770470818,7213.83641382,0.00018,2]
[375875193,1753770504389,1832.87351459,0.000176,2]
[375875194,1753770513835,953.29007159,0.00017,2]
[375875195,1753770513859,10000.0,0.00017,2]
[375875196,1753770513882,10000.0,0.00017,2]
[375875197,1753770513906,10000.0,0.00017,2]
[375875198,1753770513930,10000.0,0.00017,2]
[375875199,1753770513953,10000.0,0.00017,2]
[375875200,1753770513977,10000.0,0.00017,2]
[375875201,1753770514001,10000.0,0.00017,2]
[375875202,1753770514024,10000.0,0.00017,2]
[375875203,1753770514049,2659.49414856,0.00017,2]
[375875205,1753770522732,657.99410607,0.0001843,2]
[375875209,1753770549834,6682.51174537,0.00018187,2]
[375875210,1753770549860,3343.18617113,0.00018187,2]
[375875211,1753770556418,6656.81382887,0.00018568,2]
[375875212,1753770556442,10000.0,0.00018568,2]
[375875213,1753770556467,10000.0,0.00018568,2]
[375875214,1753770556489,10000.0,0.00018568,2]
[375875215,1753770556513,10000.0,0.00018568,2]
[375875216,1753770556537,10000.0,0.00018568,2]
[375875217,1753770556563,10000.0,0.00018568,2]
[375875218,1753770556587,10000.0,0.00018568,2]
[375875219,1753770556609,10000.0,0.00018568,2]
[375875220,1753770556632,10000.0,0.00018568,2]
[375875221,1753770556664,10000.0,0.00018568,2]
[375875222,1753770556693,10000.0,0.00018568,2]
[375875223,1753770556719,10000.0,0.00018568,2]
[375875224,1753770556743,10000.0,0.00018568,2]
[375875225,1753770556767,10000.0,0.00018568,2]
[375875226,1753770556792,10000.0,0.00018568,2]
[375875227,1753770556817,10000.0,0.00018568,2]
[375875228,1753770556844,10000.0,0.00018568,2]
[375875229,1753770556868,10000.0,0.00018568,2]
[375875230,1753770556893,10000.0,0.00018568,2]
[375875231,1753770556918,10000.0,0.00018568,2]
[375875232,1753770556943,10000.0,0.00018568,2]
[375875233,1753770556969,10000.0,0.00018568,2]
[375875234,1753770556993,10000.0,0.00018568,2]
[375875235,1753770557018,10000.0,0.00018568,2]
[375875236,1753770557041,10000.0,0.00018568,2]
[375875237,1753770557066,10000.0,0.00018568,2]
[375875238,1753770557090,10000.0,0.00018568,2]
[375875239,1753770557114,10000.0,0.00018568,2]
[375875240,1753770557138,10000.0,0.00018568,2]
[375875241,1753770557162,10000.0,0.00018568,2]
[375875242,1753770557185,10000.0,0.00018568,2]
[375875243,1753770557209,10000.0,0.00018568,2]
[375875244,1753770557232,10000.0,0.00018568,2]
[375875245,1753770557256,10000.0,0.00018568,2]
[375875246,1753770557279,10000.0,0.00018568,2]
[375875247,1753770557302,10000.0,0.00018568,2]
[375875248,1753770557326,3343.18617113,0.00018568,2]
[375875249,1753770583842,433.4646687,0.0001815,2]
[375875250,1753770597462,162.571071,0.00018222,2]
[375875251,1753770597831,637.76719954,0.00018319,2]
[375875252,1753770598907,318.88359977,0.00018416,2]
[375875298,1753770632658,-265.94786635,0.00018786,2]
[375875299,1753770632670,-1297.21100286,0.00018786,2]
[375875300,1753770632679,-185.60276192,0.00018819,2]
[375875301,1753770632689,-300.0,0.00018885,2]
[375875302,1753770632698,-180.0,0.00018885,2]
[375875303,1753770632707,-159.0,0.00018885,2]
[375875304,1753770632718,-6621.97938812,0.00018886,2]
[375875305,1753770632727,-302.57643837,0.000189,2]
[375875306,1753770632737,-5000.0,0.00018986,2]
[375875307,1753770632746,-302.54622906,0.00019089,2]
[375875308,1753770632755,-500.0,0.00019173,2]
[375875309,1753770632764,-500.59689588,0.00019173,2]
[375875311,1753770632774,-500.0,0.00019173,2]
[375875313,1753770632783,-500.0,0.00019173,2]
[375875315,1753770632793,-542.55430628,0.00019173,2]
[375875318,1753770632803,-273.31168023,0.00019178,2]
[375875321,1753770632812,-460.0,0.00019178,2]
[375875323,1753770632822,-460.0,0.00019178,2]
[375875325,1753770632831,-348.26216448,0.00019178,2]
[375875327,1753770632841,-460.0,0.00019178,2]
[375875328,1753770632850,-460.0,0.00019178,2]
[375875329,1753770632859,-460.0,0.00019178,2]
[375875330,1753770632868,-513.42699304,0.00019178,2]
[375875331,1753770632877,-460.0,0.00019178,2]
[375875332,1753770632887,-487.05578112,0.00019178,2]
[375875333,1753770632897,-460.0,0.00019178,2]
[375875335,1753770632907,-460.0,0.00019178,2]
[375875336,1753770632916,-311.17462399,0.00019178,2]
[375875337,1753770632925,-460.0,0.00019178,2]
[375875339,1753770632935,-460.0,0.00019178,2]
[375875340,1753770632944,-460.0,0.00019178,2]
[375875341,1753770632953,-460.0,0.00019178,2]
[375875342,1753770632963,-500.52702049,0.00019178,2]
[375875343,1753770632973,-460.0,0.00019178,2]
[375875344,1753770632982,-460.0,0.00019178,2]
[375875345,1753770632991,-460.0,0.00019178,2]
[375875346,1753770633001,-547.85,0.00019178,2]
[375875347,1753770633010,-460.0,0.00019178,2]
[375875348,1753770633020,-460.0,0.00019178,2]
[375875349,1753770633029,-460.0,0.00019178,2]
[375875350,1753770633039,-460.0,0.00019178,2]
[375875351,1753770633049,-460.0,0.00019178,2]
[375875352,1753770633058,-460.0,0.00019178,2]
[375875353,1753770633068,-460.0,0.00019178,2]
[375875354,1753770633078,-460.0,0.00019178,2]
[375875355,1753770633087,-463.05,0.00019178,2]
[375875356,1753770633097,-460.0,0.00019178,2]
[375875357,1753770633106,-460.0,0.00019178,2]
[375875358,1753770633116,-278.08,0.00019178,2]
[375875359,1753770633130,-460.0,0.00019178,2]
[375875360,1753770633139,-460.0,0.00019178,2]
[375875361,1753770633150,-817.99,0.00019178,2]
[375875362,1753770633160,-455.0,0.00019178,2]
[375875363,1753770633170,-460.0,0.00019178,2]
[375875364,1753770633180,-460.0,0.00019178,2]
[375875365,1753770633189,-460.0,0.00019178,2]
[375875366,1753770633199,-538.97561272,0.00019178,2]
[375875367,1753770633208,-174.76,0.00019178,2]
[375875368,1753770633218,-460.0,0.00019178,2]
[375875369,1753770633227,-417.4839969,0.00019178,2]
[375875370,1753770633240,-42.5160031,0.00019178,2]
[375875371,1753770633249,-213.05643481,0.00019178,2]
[375875375,1753770633295,-258.01356519,0.00019178,2]
[375875377,1753770633304,-460.0,0.00019178,2]
[375875378,1753770633314,-460.0,0.00019178,2]
[375875380,1753770633323,-460.0,0.00019178,2]
[375875381,1753770633333,-590.88,0.00019178,2]
[375875383,1753770633343,-460.0,0.00019178,2]
[375875385,1753770633352,-460.0,0.00019178,2]
[375875387,1753770633362,-460.0,0.00019178,2]
[375875389,1753770633372,-460.0,0.00019178,2]
[375875392,1753770633381,-460.0,0.00019178,2]
[375875394,1753770633391,-460.0,0.00019178,2]
[375875396,1753770633402,-460.0,0.00019178,2]
[375875398,1753770633412,-460.0,0.00019178,2]
[375875400,1753770633423,-460.0,0.00019178,2]
[375875401,1753770633432,-160.0,0.00019178,2]
[375875403,1753770633443,-460.0,0.00019178,2]
[375875405,1753770633453,-458.51261916,0.00019178,2]
[375875407,1753770633462,-460.0,0.00019178,2]
[375875409,1753770633472,-460.0,0.00019178,2]
[375875411,1753770633482,-460.0,0.00019178,2]
[375875413,1753770633493,-460.0,0.00019178,2]
[375875415,1753770633503,-460.0,0.00019178,2]
[375875417,1753770633513,-460.0,0.00019178,2]
[375875419,1753770633523,-698.46,0.00019178,2]
[375875421,1753770633534,-460.0,0.00019178,2]
[375875423,1753770633544,-500.0,0.00019178,2]
[375875425,1753770633554,-3300.33037381,0.00019178,2]
[375875427,1753770633564,-1000.0,0.00019221,2]
[375875429,1753770633578,-1000.0,0.00019221,2]
[375875432,1753770633591,-501.77041333,0.00019221,2]
[375875433,1753770633602,-1000.0,0.00019221,2]
[375875434,1753770633612,-460.0,0.00019452,2]
[375875435,1753770633623,-460.0,0.00019452,2]
[375875436,1753770633633,-460.0,0.00019452,2]
[375875437,1753770633643,-460.0,0.00019452,2]
[375875438,1753770633655,-460.0,0.00019452,2]
[375875439,1753770633665,-460.0,0.00019452,2]
[375875440,1753770633675,-460.0,0.00019452,2]
[375875441,1753770633684,-460.0,0.00019452,2]
[375875442,1753770633694,-460.0,0.00019452,2]
[375875443,1753770633704,-296.85,0.00019452,2]
[375875444,1753770633714,-460.0,0.00019452,2]
[375875445,1753770633723,-460.0,0.00019452,2]
[375875446,1753770633732,-460.0,0.00019452,2]
[375875447,1753770633742,-460.0,0.00019452,2]
[375875448,1753770633751,-460.0,0.00019452,2]
[375875449,1753770633761,-460.0,0.00019452,2]
[375875450,1753770633770,-460.0,0.00019452,2]
[375875451,1753770633780,-817.99,0.00019452,2]
[375875452,1753770633790,-460.0,0.00019452,2]
[375875453,1753770633800,-460.0,0.00019452,2]
[375875454,1753770633811,-460.0,0.00019452,2]
[375875455,1753770633820,-460.0,0.00019452,2]
[375875456,1753770633831,-460.0,0.00019452,2]
[375875457,1753770633841,-460.0,0.00019452,2]
[375875458,1753770633851,-460.0,0.00019452,2]
[375875459,1753770633860,-460.0,0.00019452,2]
[375875460,1753770633870,-460.0,0.00019452,2]
[375875461,1753770633880,-460.0,0.00019452,2]
[375875462,1753770633890,-460.0,0.00019452,2]
[375875463,1753770633901,-460.0,0.00019452,2]
[375875464,1753770633911,-460.0,0.00019452,2]
[375875465,1753770633920,-598.43862337,0.00019452,2]
[375875466,1753770633931,-698.46,0.00019452,2]
[375875467,1753770633941,-370.44,0.00019452,2]
[375875468,1753770633950,-500.0,0.00019452,2]
[375875469,1753770633960,-3000.00000099,0.000195,2]
[375875470,1753770633970,-200.0,0.00019555,15]
[375875471,1753770633980,-200.0,0.00019555,15]
[375875472,1753770633990,-200.0,0.00019555,15]
[375875473,1753770634000,-200.0,0.00019555,15]
[375875474,1753770634010,-628.31279156,0.00019721,2]
[375875475,1753770634019,-500.0,0.00019721,2]
[375875476,1753770634030,-228.7954114,0.00019721,2]
[375875477,1753770634040,-460.0,0.00019726,2]
[375875478,1753770634050,-460.0,0.00019726,2]
[375875479,1753770634060,-460.0,0.00019726,2]
[375875480,1753770634070,-460.0,0.00019726,2]
[375875481,1753770634079,-460.0,0.00019726,2]
[375875482,1753770634089,-460.0,0.00019726,2]
[375875483,1753770634099,-460.0,0.00019726,2]
[375875484,1753770634108,-460.0,0.00019726,2]
[375875485,1753770634118,-460.0,0.00019726,2]
[375875486,1753770634127,-460.0,0.00019726,2]
[375875487,1753770634137,-817.99,0.00019726,2]
[375875488,1753770634147,-460.0,0.00019726,2]
[375875489,1753770634157,-460.0,0.00019726,2]
[375875490,1753770634166,-460.0,0.00019726,2]
[375875491,1753770634176,-460.0,0.00019726,2]
[375875492,1753770634185,-460.0,0.00019726,2]
[375875493,1753770634195,-460.0,0.00019726,2]
[375875494,1753770634204,-460.0,0.00019726,2]
[375875495,1753770634214,-460.0,0.00019726,2]
[375875496,1753770634223,-460.0,0.00019726,2]
[375875497,1753770634233,-460.0,0.00019726,2]
[375875498,1753770634370,-460.0,0.00019726,2]
[375875499,1753770634404,-698.46,0.00019726,2]
[375875500,1753770634414,-460.0,0.0002,2]
[375875501,1753770634424,-460.0,0.0002,2]
[375875502,1753770634433,-460.0,0.0002,2]
[375875503,1753770634442,-265.64697094,0.0002,2]
[375875504,1753770634461,-460.0,0.0002,2]
[375875505,1753770634474,-460.0,0.0002,2]
[375875506,1753770634484,-460.0,0.0002,2]
[375875507,1753770634494,-460.0,0.0002,2]
[375875508,1753770634504,-817.99,0.0002,2]
[375875509,1753770634514,-460.0,0.0002,2]
[375875510,1753770634524,-580.97,0.0002,2]
[375875511,1753770634535,-460.0,0.0002,2]
[375875512,1753770634545,-488.04,0.0002,2]
[375875513,1753770634556,-460.0,0.0002,2]
[375875514,1753770634565,-362.62,0.0002,2]
[375875515,1753770634579,-460.0,0.0002,2]
[375875516,1753770634600,-460.0,0.0002,2]
[375875517,1753770634610,-460.0,0.0002,2]
[375875518,1753770634620,-698.46,0.0002,2]
[375875519,1753770634630,-460.0,0.00020273,2]
[375875520,1753770634640,-303.33,0.00020273,2]
[375875521,1753770634650,-241.63672229,0.00020273,2]
[375875522,1753770634660,-460.0,0.00020273,2]
[375875523,1753770634671,-460.0,0.00020273,2]
[375875524,1753770634681,-460.0,0.00020273,2]
[375875525,1753770634691,-547.72,0.00020273,2]
[375875526,1753770634701,-817.99,0.00020273,2]
[375875527,1753770634711,-460.0,0.00020273,2]
[375875528,1753770634722,-460.0,0.00020273,2]
[375875529,1753770634732,-460.0,0.00020273,2]
[375875530,1753770634742,-553.43,0.00020273,2]
[375875531,1753770634753,-460.0,0.00020273,2]
[375875532,1753770634762,-460.0,0.00020273,2]
[375875533,1753770634772,-698.46,0.00020273,2]
[375875534,1753770634782,-1680.0,0.00020349,2]
[375875535,1753770634792,-460.0,0.00020547,2]
[375875536,1753770634802,-460.0,0.00020547,2]
[375875537,1753770634811,-460.0,0.00020547,2]
[375875538,1753770634821,-817.99,0.00020547,2]
[375875539,1753770634830,-460.0,0.00020547,2]
[375875540,1753770634840,-460.0,0.00020547,2]
[375875541,1753770634850,-460.0,0.00020547,2]
[375875542,1753770634860,-460.0,0.00020547,2]
[375875543,1753770634870,-460.0,0.00020547,2]
[375875544,1753770634880,-698.46,0.00020547,2]
[375875545,1753770634890,-214.91980558,0.00020573,2]
[375875546,1753770634901,-12637.12721421,0.00020573,2]
[375875547,1753770634911,-420.0,0.00020587,2]
[375875548,1753770634922,-460.0,0.00020821,2]
[375875549,1753770634932,-460.0,0.00020821,2]
[375875550,1753770634942,-460.0,0.00020821,2]
[375875551,1753770634952,-817.99,0.00020821,2]
[375875552,1753770634962,-482.3,0.00020821,2]
[375875553,1753770634972,-223.44457034,0.00020821,2]
[375875554,1753770634982,-460.0,0.00020821,2]
[375875555,1753770634992,-460.0,0.00020821,2]
[375875556,1753770635002,-452.35,0.00020821,2]
[375875557,1753770635012,-698.46,0.00020821,2]
[375875558,1753770635021,-460.0,0.00021095,2]
[375875559,1753770635031,-460.0,0.00021095,2]
[375875560,1753770635041,-460.0,0.00021095,2]
[375875561,1753770635051,-817.99,0.00021095,2]
[375875562,1753770635060,-460.0,0.00021095,2]
[375875563,1753770635071,-460.0,0.00021095,2]
[375875564,1753770635080,-698.46,0.00021095,2]
[375875565,1753770635090,-214.91980558,0.00021212,3]
[375875566,1753770635100,-12637.12721421,0.00021212,3]
[375875567,1753770635109,-460.0,0.00021369,2]
[375875568,1753770635119,-460.0,0.00021369,2]
[375875569,1753770635128,-460.0,0.00021369,2]
[375875570,1753770635138,-817.99,0.00021369,2]
[375875571,1753770635148,-460.0,0.00021369,2]
[375875572,1753770635159,-460.0,0.00021369,2]
[375875573,1753770635168,-698.46,0.00021369,2]
[375875574,1753770635178,-200.0,0.00021472,15]
[375875575,1753770635187,-200.0,0.00021472,15]
[375875576,1753770635196,-200.0,0.00021472,15]
[375875577,1753770635206,-200.0,0.00021472,15]
[375875578,1753770635216,-320.0,0.00021472,15]
[375875579,1753770635225,-10343.64,0.000215,2]
[375875580,1753770635235,-997.78256394,0.000215,2]
[375875581,1753770635244,-460.0,0.00021643,2]
[375875582,1753770635253,-460.0,0.00021643,2]
[375875583,1753770635263,-308.56,0.00021643,2]
[375875584,1753770635272,-817.99,0.00021643,2]
[375875585,1753770635281,-460.0,0.00021643,2]
[375875586,1753770635291,-570.21362519,0.00021643,2]
[375875587,1753770635300,-698.46,0.00021643,2]
[375875588,1753770635309,-297.697,0.00021662,2]
[375875589,1753770635320,-583.9,0.00021671,4]
[375875590,1753770635329,-160.0,0.000217,2]
[375875591,1753770635339,-272.0,0.00021879,2]
[375875592,1753770635348,-460.0,0.00021917,2]
[375875593,1753770635358,-460.0,0.00021917,2]
[375875594,1753770635368,-817.99,0.00021917,2]
[375875595,1753770635377,-500.0,0.00021917,2]
[375875596,1753770635387,-507.65964383,0.00021917,2]
[375875597,1753770635397,-460.0,0.00021917,2]